fUST/lending_fUST_20240717
["ID","MTS","AMOUNT","RATE_DAILY","PERIOD"]
[332396248,1721149843606,-539.05099463,0.00021917,2]
[332396250,1721149843619,-500.0,0.00021917,2]
[332396252,1721149843629,-500.0,0.00021917,2]
[332396254,1721149843639,-500.0,0.00021917,2]
[332396256,1721149843650,-190.81208504,0.00021917,2]
[332396258,1721149843659,-500.0,0.00021917,2]
[332396260,1721149843670,-500.0,0.00021917,2]
[332396262,1721149843680,-500.0,0.00021917,2]
[332396264,1721149843690,-2434.42,0.00021917,2]
[332396266,1721149843699,-501.4468765,0.00021917,2]
[332396268,1721149843708,-500.0,0.00021917,2]
[332396270,1721149843719,-500.0,0.00021917,2]
[332396272,1721149843729,-500.0,0.00021917,2]
[332396274,1721149843740,-500.0,0.00021917,2]
[332396276,1721149843751,-500.0,0.00021917,2]
[332396278,1721149843760,-500.0,0.00021917,2]
[332396280,1721149843770,-502.7724056,0.00021917,2]
[332396282,1721149843780,-500.0,0.00021917,2]
[332396284,1721149843789,-500.0,0.00021917,2]
[332396286,1721149843799,-500.73738812,0.00021917,2]
[332396288,1721149843808,-500.0,0.00021917,2]
[332396290,1721149843818,-500.0,0.00021917,2]
[332396292,1721149843827,-500.0,0.00021917,2]
[332396294,1721149843837,-500.0,0.00021917,2]
[332396296,1721149843847,-500.0,0.00021917,2]
[332396299,1721149843857,-500.0,0.00021917,2]
[332396301,1721149843868,-500.0,0.00021917,2]
[332396303,1721149843878,-500.0,0.00021917,2]
[332396305,1721149843888,-500.0,0.00021917,2]
[332396307,1721149843899,-600.60453441,0.00021917,2]
[332396309,1721149843908,-500.0,0.00021917,2]
[332396311,1721149843917,-509.57942774,0.00021917,2]
[332396313,1721149843927,-500.0,0.00021917,2]
[332396315,1721149843937,-500.0,0.00021917,2]
[332396317,1721149843947,-516.07735879,0.00021917,2]
[332396319,1721149843957,-500.0,0.00021917,2]
[332396321,1721149843968,-500.0,0.00021917,2]
[332396323,1721149843978,-500.0,0.00021917,2]
[332396325,1721149843988,-500.0,0.00021917,2]
[332396327,1721149843998,-500.0,0.00021917,2]
[332396329,1721149844007,-500.0,0.00021917,2]
[332396331,1721149844018,-500.0,0.00021917,2]
[332396341,1721149844106,-500.0,0.00021917,2]
[332396344,1721149844118,-500.0,0.00021917,2]
[332396346,1721149844127,-511.69507559,0.00021917,2]
[332396347,1721149844136,-500.0,0.00021917,2]
[332396348,1721149844145,-500.0,0.00021917,2]
[332396349,1721149844155,-500.0,0.00021917,2]
[332396350,1721149844164,-500.0,0.00021917,2]
[332396351,1721149844174,-500.0,0.00021917,2]
[332396352,1721149844183,-501.02106288,0.00021917,2]
[332396353,1721149844192,-500.0,0.00021917,2]
[332396354,1721149844202,-500.0,0.00021917,2]
[332396355,1721149844212,-500.0,0.00021917,2]
[332396356,1721149844223,-376.2030221,0.00021917,2]
[332396357,1721149844232,-500.0,0.00021917,2]
[332396358,1721149844243,-361.11154877,0.00021917,2]
[332396360,1721149844253,-500.0,0.00021917,2]
[332396362,1721149844262,-500.0,0.00021917,2]
[332396364,1721149844271,-500.0,0.00021917,2]
[332396366,1721149844281,-500.0,0.00021917,2]
[332396368,1721149844291,-500.0,0.00021917,2]
[332396371,1721149844301,-500.0,0.00021917,2]
[332396372,1721149844310,-500.0,0.00021917,2]
[332396374,1721149844320,-500.0,0.00021917,2]
[332396376,1721149844329,-500.0,0.00021917,2]
[332396378,1721149844339,-500.0,0.00021917,2]
[332396381,1721149844348,-500.0,0.00021917,2]
[332396383,1721149844358,-500.0,0.00021917,2]
[332396385,1721149844368,-500.0,0.00021917,2]
[332396387,1721149844377,-1966.23,0.00021917,2]
[332396389,1721149844386,-553.19559752,0.00021917,2]
[332396391,1721149844395,-500.0,0.00021917,2]
[332396393,1721149844405,-484.10748749,0.00021917,2]
[332396395,1721149844415,-501.91227958,0.00021917,2]
[332396397,1721149844425,-500.0,0.00021917,2]
[332396399,1721149844434,-500.0,0.00021917,2]
[332396401,1721149844445,-500.0,0.00021917,2]
[332396403,1721149844454,-610.28,0.00021917,2]
[332396405,1721149844463,-500.0,0.00021917,2]
[332396407,1721149844473,-500.0,0.00021917,2]
[332396409,1721149844483,-515.76756425,0.00021917,2]
[332396411,1721149844496,-500.0,0.00021917,2]
[332396413,1721149844505,-508.97,0.00021917,2]
[332396415,1721149844515,-500.0,0.00021917,2]
[332396417,1721149844527,-500.0,0.00021917,2]
[332396419,1721149844538,-500.0,0.00021917,2]
[332396421,1721149844548,-561.34513262,0.00021917,2]
[332396423,1721149844558,-500.0,0.00021917,2]
[332396425,1721149844568,-500.0,0.00021917,2]
[332396426,1721149844578,-500.0,0.00021917,2]
[332396428,1721149844587,-500.0,0.00021917,2]
[332396430,1721149844597,-500.0,0.00021917,2]
[332396432,1721149844606,-922.79,0.00021917,2]
[332396434,1721149844617,-524.36714738,0.00021917,2]
[332396436,1721149844627,-948.04,0.00021917,2]
[332396439,1721149844637,-500.0,0.00021917,2]
[332396441,1721149844646,-500.0,0.00021917,2]
[332396443,1721149844656,-500.0,0.00021917,2]
[332396445,1721149844665,-368.40807096,0.00021917,2]
[332396447,1721149844676,-500.0,0.00021917,2]
[332396449,1721149844685,-500.0,0.00021917,2]
[332396451,1721149844695,-500.0,0.00021917,2]
[332396453,1721149844704,-500.0,0.00021917,2]
[332396455,1721149844714,-500.0,0.00021917,2]
[332396457,1721149844723,-500.0,0.00021917,2]
[332396458,1721149844737,-500.0,0.00021917,2]
[332396461,1721149844746,-500.0,0.00021917,2]
[332396463,1721149844756,-500.0,0.00021917,2]
[332396465,1721149844768,-500.0,0.00021917,2]
[332396467,1721149844779,-500.0,0.00021917,2]
[332396469,1721149844788,-2243.43,0.00021917,2]
[332396471,1721149844798,-500.0,0.00021917,2]
[332396473,1721149844807,-500.0,0.00021917,2]
[332396474,1721149844816,-500.0,0.00021917,2]
[332396477,1721149844827,-500.0,0.00021917,2]
[332396479,1721149844837,-500.0,0.00021917,2]
[332396481,1721149844847,-500.0,0.00021917,2]
[332396483,1721149844856,-500.0,0.00021917,2]
[332396485,1721149844867,-569.25974538,0.00021917,2]
[332396487,1721149844876,-428.34305079,0.00021917,2]
[332396489,1721149844886,-500.0,0.00021917,2]
[332396491,1721149844895,-500.0,0.00021917,2]
[332396493,1721149844907,-500.0,0.00021917,2]
[332396495,1721149844918,-500.0,0.00021917,2]
[332396497,1721149844928,-151.0,0.00021917,2]
[332396499,1721149844938,-151.0,0.00021917,2]
[332396501,1721149844949,-500.0,0.00021917,2]
[332396503,1721149844960,-151.0,0.00021917,2]
[332396505,1721149844969,-500.0,0.00021917,2]
[332396507,1721149844980,-151.0,0.00021917,2]
[332396509,1721149844993,-151.0,0.00021917,2]
[332396511,1721149845003,-151.0,0.00021917,2]
[332396513,1721149845012,-500.0,0.00021917,2]
[332396515,1721149845023,-194.966046,0.00021917,2]
[332396517,1721149845035,-603.00167635,0.00021917,2]
[332396519,1721149845044,-500.0,0.00021917,2]
[332396521,1721149845054,-500.0,0.00021917,2]
[332396523,1721149845063,-500.0,0.00021917,2]
[332396525,1721149845073,-500.0,0.00021917,2]
[332396527,1721149845083,-292.99920951,0.00021917,2]
[332396529,1721149845093,-500.0,0.00021917,2]
[332396531,1721149845103,-500.0,0.00021917,2]
[332396533,1721149845113,-500.0,0.00021917,2]
[332396536,1721149845123,-1000.0,0.00021917,2]
[332396538,1721149845133,-1000.0,0.00021917,2]
[332396540,1721149845142,-1000.0,0.00021917,2]
[332396542,1721149845151,-500.0,0.00021917,2]
[332396544,1721149845161,-1000.0,0.00021917,2]
[332396546,1721149845171,-1000.0,0.00021917,2]
[332396548,1721149845181,-1000.0,0.00021917,2]
[332396550,1721149845191,-1000.0,0.00021917,2]
[332396552,1721149845200,-1000.0,0.00021917,2]
[332396554,1721149845210,-1000.0,0.00021917,2]
[332396556,1721149845219,-1000.0,0.00021917,2]
[332396558,1721149845228,-1000.0,0.00021917,2]
[332396559,1721149845239,-1000.0,0.00021917,2]
[332396561,1721149845249,-1000.0,0.00021917,2]
[332396563,1721149845258,-1000.0,0.00021917,2]
[332396566,1721149845267,-1000.0,0.00021917,2]
[332396567,1721149845276,-1000.0,0.00021917,2]
[332396569,1721149845286,-1000.0,0.00021917,2]
[332396570,1721149845295,-1000.0,0.00021917,2]
[332396572,1721149845304,-1000.0,0.00021917,2]
[332396574,1721149845314,-500.0,0.00021917,2]
[332396576,1721149845324,-1000.0,0.00021917,2]
[332396578,1721149845334,-1000.0,0.00021917,2]
[332396580,1721149845343,-1000.0,0.00021917,2]
[332396582,1721149845352,-1000.0,0.00021917,2]
[332396592,1721149845362,-1000.0,0.00021917,2]
[332396594,1721149845447,-1000.0,0.00021917,2]
[332396596,1721149845457,-1000.0,0.00021917,2]
[332396598,1721149845469,-1000.0,0.00021917,2]
[332396600,1721149845479,-1000.0,0.00021917,2]
[332396602,1721149845490,-500.0,0.00021917,2]
[332396605,1721149845500,-1000.0,0.00021917,2]
[332396607,1721149845509,-500.0,0.00021917,2]
[332396609,1721149845518,-503.61206608,0.00021917,2]
[332396611,1721149845529,-1000.0,0.00021917,2]
[332396613,1721149845543,-500.0,0.00021917,2]
[332396615,1721149845552,-980.33377813,0.00021917,2]
[332396618,1721149845572,-19.66622187,0.00021917,2]
[332396620,1721149845583,-963.38,0.00021917,2]
[332396622,1721149845593,-1000.0,0.00021917,2]
[332396623,1721149845602,-389.674727,0.00021917,2]
[332396625,1721149845613,-500.0,0.00021917,2]
[332396628,1721149845624,-500.0,0.00021917,2]
[332396630,1721149845633,-151.0,0.00021917,2]
[332396631,1721149845643,-500.0,0.00021917,2]
[332396634,1721149845652,-151.0,0.00021917,2]
[332396635,1721149845662,-151.0,0.00021917,2]
[332396637,1721149845672,-500.0,0.00021917,2]
[332396639,1721149845681,-151.0,0.00021917,2]
[332396642,1721149845692,-151.0,0.00021917,2]
[332396644,1721149845702,-151.0,0.00021917,2]
[332396646,1721149845711,-195.57982129,0.00021917,2]
[332396648,1721149845721,-151.0,0.00021917,2]
[332396650,1721149845731,-500.0,0.00021917,2]
[332396652,1721149845745,-500.0,0.00021917,2]
[332396653,1721149845755,-151.0,0.00021917,2]
[332396656,1721149845765,-500.0,0.00021917,2]
[332396658,1721149845774,-500.0,0.00021917,2]
[332396659,1721149845784,-500.0,0.00021917,2]
[332396661,1721149845794,-500.0,0.00021917,2]
[332396663,1721149845804,-500.0,0.00021917,2]
[332396665,1721149845813,-294.70402084,0.00021917,2]
[332396724,1721149846372,-205.29597916,0.00021917,2]
[332396726,1721149846382,-500.0,0.00021917,2]
[332396728,1721149846392,-203.62997741,0.00021917,2]
[332396730,1721149846401,-500.0,0.00021917,2]
[332396732,1721149846411,-127.40299517,0.00021917,2]
[332396734,1721149846423,-372.59700483,0.00021917,2]
[332396736,1721149846432,-101.21595144,0.00021917,2]
[332396790,1721149846971,-398.78404856,0.00021917,2]
[332396791,1721149846981,-500.0,0.00021917,2]
[332396792,1721149846993,-500.0,0.00021917,2]
[332396793,1721149847003,-500.0,0.00021917,2]
[332396794,1721149847014,-300.52231953,0.00021917,2]
[332396795,1721149847027,-1398.57585099,0.00021917,2]
[332399006,1721150120536,154.63660398,0.00014999,2]
[332399007,1721150165697,359.01191263,0.00014999,2]
[332399008,1721150260994,156.31654489,0.00014999,2]
[332399009,1721150423034,262.29179934,0.00014999,2]
[332399011,1721150426334,12487.85378504,0.00014999,2]
[332399012,1721150502707,195.31716393,0.00014999,2]
[332399013,1721150524081,3082.91011284,0.00014999,2]
[332399014,1721150526018,909.46908268,0.00014999,2]
[332399015,1721150541038,567.33942329,0.00014999,2]
[332399016,1721150545515,935.81729399,0.00014999,2]
[332399017,1721150548107,525.89628869,0.00014999,2]
[332399018,1721150552877,590.45069384,0.00015,2]
[332399019,1721150553850,1287.87828047,0.00015,2]
[332399020,1721150560403,993.30712187,0.00014999,2]
[332399021,1721150562040,532.67305812,0.00014999,2]
[332399022,1721150569963,1637.23767078,0.00014999,2]
[332399023,1721150585658,1500.0,0.00014999,2]
[332399024,1721150603626,518.34284537,0.00014999,2]
[332399025,1721150608294,791.01829495,0.00014999,2]
[332399026,1721150618557,215.83191418,0.00014999,2]
[332399027,1721150634553,154.59033561,0.00014999,2]
[332399028,1721150640328,629.43120672,0.00014999,2]
[332399029,1721150651151,526.48641248,0.00014999,2]
[332399030,1721150662133,526.48641248,0.00014999,2]
[332399031,1721150694613,1443.81042753,0.00014999,2]
[332399035,1721150732512,156.26255716,0.00014999,2]
[332399036,1721150735691,154.94951165,0.00014999,2]
[332399037,1721150745002,1798.84851072,0.00014999,2]
[332399038,1721150746614,979.94921801,0.00014999,2]
[332399039,1721150753169,791.01829495,0.00014999,2]
[332399040,1721150759524,1490.35835308,0.00014999,2]
[332399041,1721150776559,208.07089565,0.00014999,2]
[332399042,1721150787070,521.20465749,0.00014999,2]
[332399043,1721150803684,993.00699843,0.00014999,2]
[332399044,1721150805817,1287.49795197,0.00015,2]
[332399045,1721150839406,1637.23767078,0.00014999,2]
[332399046,1721150841791,540.58085513,0.00014999,2]
[332399047,1721150848676,1500.0,0.00014999,2]
[332399048,1721150867347,171.92725803,0.00014999,2]
[332399051,1721150888112,165.145537,0.00014999,2]
[332399059,1721150901395,278.20264776,0.000225,30]
[332399060,1721150901440,4249.79735224,0.000225,30]
[332399062,1721150921298,236.22452928,0.00014999,2]
[332399070,1721150956218,270.44359447,0.00014999,2]
[332399071,1721150960730,524.1077099,0.00014999,2]
[332399072,1721150969924,155.45716296,0.00014999,2]
[332399073,1721150994546,156.28958,0.00014999,2]
[332399103,1721151033266,-652.22951312,0.00016255,2]
[332399104,1721151033285,-0.76205801,0.00016255,2]
[332399105,1721151033300,-154.62117811,0.00016255,2]
[332399106,1721151033311,-383.08411891,0.000189,2]
[332399107,1721151033321,-3716.67062602,0.0001913,2]
[332399117,1721151038385,-3823.60908448,0.0001913,2]
[332399118,1721151038394,-167.405114,0.00019178,2]
[332399119,1721151038403,-205.307784,0.00019199,2]
[332399120,1721151038413,-250.0,0.00019238,2]
[332399121,1721151038422,-300.0,0.00019304,2]
[332399122,1721151038433,-250.0,0.00019305,2]
[332399123,1721151038443,-158.534687,0.00019389,2]
[332399124,1721151038453,-2932.1910074,0.00019401,2]
[332399125,1721151038462,-611.4004455,0.00019401,2]
[332399126,1721151038472,-599.2815524,0.00019484,2]
[332399127,1721151038482,-228.28740449,0.0002,2]
[332399128,1721151038491,-7965.04401083,0.0002,2]
[332399129,1721151038503,-7656.09411554,0.0002,2]
[332399130,1721151038514,-2287.14595956,0.0002,2]
[332399140,1721151040593,-314.9577266,0.0002,2]
[332399162,1721151043489,-2514.19952156,0.0002,2]
[332399163,1721151043499,-914.25108257,0.00020942,2]
[332399164,1721151043508,-248.1002,0.00021,2]
[332399165,1721151043517,-5894.45398687,0.00021,2]
[332399174,1721151046498,-337.62032309,0.00021,2]
[332399175,1721151046510,-3784.60846904,0.00021,2]
[332399176,1721151046520,-299.58099341,0.00021095,2]
[332399177,1721151046530,-566.384716,0.00021096,2]
[332399178,1721151046539,-300.0,0.00021234,2]
[332399179,1721151046548,-156.008579,0.000213,2]
[332399180,1721151046559,-620.00228738,0.00021353,2]
[332399181,1721151046568,-150.0,0.00021768,2]
[332399182,1721151046578,-503.0,0.00021768,2]
[332399183,1721151046588,-1407.0,0.00021768,2]
[332399184,1721151046598,-3000.0,0.000218,2]
[332399185,1721151046607,-3000.0,0.0002181,2]
[332399186,1721151046618,-3000.0,0.0002182,2]
[332399187,1721151046627,-3000.0,0.0002183,2]
[332399188,1721151046637,-3000.0,0.0002184,2]
[332399189,1721151046648,-3000.0,0.0002185,2]
[332399190,1721151046659,-3000.0,0.0002186,2]
[332399191,1721151046669,-3000.0,0.0002187,2]
[332399192,1721151046678,-985.59257993,0.0002188,2]
[332399193,1721151050805,1580.66,0.00021,10]
[332399210,1721151156433,242.90786688,0.00014999,2]
[332399211,1721151394647,845.08419421,0.00014999,2]
[332399212,1721151447141,686.79211742,0.00014999,2]
[332399213,1721151487768,346.6621426,0.00014999,2]
[332399214,1721151522831,187.68063436,0.00014999,2]
[332399217,1721151560754,845.08419421,0.00014999,2]
[332399218,1721151601852,1988.50300609,0.00014999,2]
[332399221,1721151679465,1152.35722372,0.00014999,2]
[332399222,1721151706710,845.08419421,0.00014999,2]
[332399223,1721151713592,9624.76461366,0.00014998,2]
[332399224,1721151725697,845.11491107,0.00014999,2]
[332399225,1721151736108,567.16801748,0.00014999,2]
[332399227,1721151758878,1988.50300609,0.00014999,2]
[332399233,1721151860668,796.57153366,0.00014999,2]
[332399234,1721151920712,845.11491107,0.00014999,2]
[332399235,1721151921218,979.69908413,0.00014999,2]
[332399236,1721151925282,239.85678316,0.00014999,2]
[332399243,1721152008613,1458.83015572,0.00014999,2]
[332399244,1721152015252,204.62393233,0.00014999,2]
[332399258,1721152045536,435.24563021,0.00014999,2]
[332399259,1721152074807,287.14415021,0.00014999,2]
[332399260,1721152122173,1319.76649588,0.00014999,2]
[332399261,1721152137190,463.55528147,0.00014999,2]
[332399265,1721152155560,244.11093245,0.00014999,2]
[332399267,1721152171135,-182.85989079,0.00016255,2]
[332399268,1721152171157,-708.93362904,0.00016255,2]
[332399269,1721152171178,-300.0,0.00018179,2]
[332399270,1721152171198,-159.76779207,0.0001818,2]
[332399271,1721152171218,-155.10661917,0.0001818,2]
[332399272,1721152171240,-847.79900167,0.0001818,2]
[332399273,1721152171262,-216.67984822,0.00018798,2]
[332399275,1721152172816,353.06707028,0.00014999,2]
[332399277,1721152173410,48.11035538,0.00014999,2]
[332399278,1721152173434,189.80119893,0.00014999,2]
[332399279,1721152174127,-305.38941261,0.000189,2]
[332399280,1721152174148,-184.441916,0.00019652,2]
[332399282,1721152177304,409.74129619,0.0001818,2]
[332399320,1721152232511,-194.7062855,0.00019799,2]
[332399321,1721152232520,-164.623106,0.00019834,2]
[332399322,1721152232530,-186.54624422,0.0002,2]
[332399428,1721152238577,-41.74116027,0.0002,2]
[332399430,1721152238586,-2514.19952256,0.0002,2]
[332399432,1721152238596,-287.16282876,0.00021,2]
[332399434,1721152238605,-356.22951685,0.00021,2]
[332399436,1721152238614,-6873.12150085,0.00021,2]
[332399438,1721152238625,-3822.73499725,0.00021,2]
[332399440,1721152238634,-1000.0,0.00021,8]
[332399442,1721152238644,-1166.73761215,0.000217,2]
[332399444,1721152238653,-150.0,0.00021764,2]
[332399446,1721152238663,-417.11936685,0.00021764,2]
[332399448,1721152238674,-989.88063315,0.00021764,2]
[332399450,1721152238683,-150.183,0.00021764,2]
[332399453,1721152238694,-572.16458888,0.0002177,2]
[332399455,1721152238702,-572.16458886,0.00021782,2]
[332399457,1721152238712,-572.16458886,0.00021794,2]
[332399459,1721152238721,-8293.66971,0.000218,2]
[332399461,1721152238730,-3000.0,0.000218,2]
[332399463,1721152238739,-572.16458886,0.00021805,2]
[332399465,1721152238749,-3000.0,0.0002181,2]
[332399467,1721152238758,-572.16458886,0.00021817,2]
[332399469,1721152238768,-3000.0,0.0002182,2]
[332399471,1721152238777,-3000.0,0.0002183,2]
[332399473,1721152238786,-3000.0,0.0002184,2]
[332399475,1721152238795,-3000.0,0.0002185,2]
[332399477,1721152238805,-3000.0,0.0002186,2]
[332399479,1721152238814,-3000.0,0.0002187,2]
[332399481,1721152238823,-3000.0,0.0002188,2]
[332399483,1721152238833,-3000.0,0.0002189,2]
[332399495,1721152238935,-150.112233,0.000219,3]
[332399497,1721152238946,-5302.320108,0.000219,2]
[332399499,1721152238957,-20474.8126418,0.00021907,3]
[332399501,1721152238967,-2559.35158023,0.00021908,3]
[332399503,1721152238976,-3200.0,0.00021915,2]
[332399505,1721152238986,-1291.58110229,0.00021917,5]
[332399507,1721152238995,-473.56428002,0.00021917,2]
[332399509,1721152239004,-3732.89,0.00021917,2]
[332399511,1721152239013,-500.0,0.00021917,2]
[332399513,1721152239023,-500.0,0.00021917,2]
[332399515,1721152239032,-500.0,0.00021917,2]
[332399517,1721152239041,-500.0,0.00021917,2]
[332399519,1721152239050,-500.0,0.00021917,2]
[332399521,1721152239060,-500.0,0.00021917,2]
[332399523,1721152239070,-500.0,0.00021917,2]
[332399525,1721152239080,-500.0,0.00021917,2]
[332399527,1721152239089,-500.0,0.00021917,2]
[332399529,1721152239098,-501.99809805,0.00021917,2]
[332399531,1721152239108,-500.0,0.00021917,2]
[332399533,1721152239117,-500.0,0.00021917,2]
[332399534,1721152239126,-500.0,0.00021917,2]
[332399536,1721152239136,-500.0,0.00021917,2]
[332399538,1721152239146,-500.0,0.00021917,2]
[332399540,1721152239155,-500.0,0.00021917,2]
[332399542,1721152239164,-500.0,0.00021917,2]
[332399544,1721152239174,-500.0,0.00021917,2]
[332399546,1721152239184,-500.0,0.00021917,2]
[332399548,1721152239194,-500.0,0.00021917,2]
[332399551,1721152239204,-500.0,0.00021917,2]
[332399553,1721152239214,-500.0,0.00021917,2]
[332399555,1721152239223,-559.8459662,0.00021917,2]
[332399557,1721152239233,-509.13,0.00021917,2]
[332399559,1721152239243,-500.0,0.00021917,2]
[332399561,1721152239254,-500.0,0.00021917,2]
[332399563,1721152239263,-500.0,0.00021917,2]
[332399565,1721152239274,-500.0,0.00021917,2]
[332399567,1721152239284,-338.8970383,0.00021917,2]
[332399569,1721152239293,-500.0,0.00021917,2]
[332399571,1721152239303,-500.0,0.00021917,2]
[332399573,1721152239312,-500.0,0.00021917,2]
[332399575,1721152239322,-500.0,0.00021917,2]
[332399576,1721152239331,-509.27874572,0.00021917,2]
[332399578,1721152239341,-500.0,0.00021917,2]
[332399580,1721152239350,-500.0,0.00021917,2]
[332399582,1721152239360,-500.0,0.00021917,2]
[332399584,1721152239372,-500.0,0.00021917,2]
[332399586,1721152239381,-500.0,0.00021917,2]
[332399588,1721152239391,-509.63646451,0.00021917,2]
[332399590,1721152239401,-458.83103309,0.00021917,2]
[332399592,1721152239411,-500.0,0.00021917,2]
[332399594,1721152239422,-500.0,0.00021917,2]
[332399596,1721152239431,-500.0,0.00021917,2]
[332399598,1721152239441,-500.0,0.00021917,2]
[332399600,1721152239453,-500.0,0.00021917,2]
[332399602,1721152239463,-500.0,0.00021917,2]
[332399604,1721152239472,-500.0,0.00021917,2]
[332399606,1721152239482,-500.0,0.00021917,2]
[332399608,1721152239491,-500.0,0.00021917,2]
[332399610,1721152239501,-500.0,0.00021917,2]
[332399613,1721152239511,-500.0,0.00021917,2]
[332399615,1721152239521,-542.79,0.00021917,2]
[332399617,1721152239530,-500.0,0.00021917,2]
[332399619,1721152239540,-500.0,0.00021917,2]
[332399621,1721152239549,-500.0,0.00021917,2]
[332399623,1721152239558,-500.0,0.00021917,2]
[332399624,1721152239568,-500.0,0.00021917,2]
[332399625,1721152239578,-500.0,0.00021917,2]
[332399626,1721152239589,-500.0,0.00021917,2]
[332399627,1721152239598,-500.0,0.00021917,2]
[332399628,1721152239608,-500.0,0.00021917,2]
[332399629,1721152239617,-500.0,0.00021917,2]
[332399630,1721152239627,-502.09320853,0.00021917,2]
[332399631,1721152239636,-500.2677045,0.00021917,2]
[332399632,1721152239648,-500.0,0.00021917,2]
[332399633,1721152239657,-500.0,0.00021917,2]
[332399634,1721152239666,-505.75620937,0.00021917,2]
[332399635,1721152239676,-500.0,0.00021917,2]
[332399637,1721152239686,-151.0,0.00021917,2]
[332399639,1721152239695,-151.0,0.00021917,2]
[332399641,1721152239704,-151.0,0.00021917,2]
[332399643,1721152239714,-151.0,0.00021917,2]
[332399646,1721152239723,-151.0,0.00021917,2]
[332399648,1721152239732,-500.0,0.00021917,2]
[332399650,1721152239742,-500.0,0.00021917,2]
[332399652,1721152239751,-500.0,0.00021917,2]
[332399654,1721152239761,-500.0,0.00021917,2]
[332399656,1721152239770,-500.0,0.00021917,2]
[332399658,1721152239780,-411.84868497,0.00021917,2]
[332399660,1721152239790,-500.0,0.00021917,2]
[332399662,1721152239799,-500.0,0.00021917,2]
[332399664,1721152239808,-500.0,0.00021917,2]
[332399666,1721152239817,-500.0,0.00021917,2]
[332399668,1721152239826,-500.0,0.00021917,2]
[332399670,1721152239835,-500.0,0.00021917,2]
[332399672,1721152239844,-500.0,0.00021917,2]
[332399674,1721152239854,-518.0,0.00021917,2]
[332399676,1721152239864,-508.01061373,0.00021917,2]
[332399678,1721152239873,-500.0,0.00021917,2]
[332399680,1721152239883,-500.0,0.00021917,2]
[332399682,1721152239895,-500.0,0.00021917,2]
[332399684,1721152239904,-500.0,0.00021917,2]
[332399686,1721152239913,-500.0,0.00021917,2]
[332399688,1721152239922,-500.0,0.00021917,2]
[332399690,1721152239932,-500.0,0.00021917,2]
[332399692,1721152239941,-500.0,0.00021917,2]
[332399694,1721152239951,-500.0,0.00021917,2]
[332399696,1721152239960,-500.0,0.00021917,2]
[332399698,1721152239970,-500.0,0.00021917,4]
[332399700,1721152239980,-502.34002081,0.00021917,2]
[332399702,1721152239990,-500.0,0.00021917,2]
[332399704,1721152239999,-500.0,0.00021917,2]
[332399706,1721152240008,-500.0,0.00021917,2]
[332399708,1721152240017,-500.0,0.00021917,2]
[332399710,1721152240027,-500.0,0.00021917,2]
[332399712,1721152240037,-500.0,0.00021917,2]
[332399714,1721152240047,-500.0,0.00021917,2]
[332399716,1721152240057,-505.09029072,0.00021917,2]
[332399718,1721152240068,-500.0,0.00021917,2]
[332399720,1721152240077,-500.0,0.00021917,2]
[332399722,1721152240087,-500.0,0.00021917,2]
[332399724,1721152240099,-500.0,0.00021917,2]
[332399726,1721152240109,-505.82565158,0.00021917,2]